bitfinex-derivatives/quotes_SOLF0:USTF0_20240912
["timestamp","ask_amount","ask_price","bid_price","bid_amount"]
[1726138773810,3.3485,134.38,134.36,4.7377]
[1726138779126,3.3484,134.39,134.37,3.3486]
[1726138784429,3.3486,134.38,134.36,4.7376]
[1726138787927,11.43,134.4,134.36,1.3887]
[1726138788634,3.3486,134.38,134.36,1.3887]
[1726138791541,3.3486,134.38,134.36,4.7377]
[1726138794541,3.3486,134.38,134.36,1.3887]
[1726138794734,3.3486,134.38,134.35,3.3491]
[1726138799351,11.43,134.39,134.33,13.04526133]
[1726138799848,3.349,134.36,134.34,3.3494]
[1726138801046,11.43,134.39,134.35,3.3492]
[1726138801047,3.3488,134.37,134.35,3.3492]
[1726138801250,1.3077,134.43,134.35,3.3492]
[1726138801459,11.43,134.42,134.35,11.43]
[1726138801644,3.3481,134.4,134.37,3.3487]
[1726138801850,11.43,134.42,134.35,11.43]
[1726138802046,11.43,134.41,134.33,13.04526133]
[1726138802347,11.43,134.41,134.35,3.3491]
[1726138802348,3.3487,134.38,134.35,3.3491]
[1726138802550,11.43,134.4,134.33,13.04526133]
[1726138802747,11.43,134.4,134.33,11.60866133]
[1726138802748,3.3493,134.35,134.33,11.60866133]
[1726138807950,3.3491,134.36,134.33,14.95836133]
[1726138808157,11.43,134.38,134.33,11.60866133]
[1726138808551,3.3489,134.37,134.34,3.3494]
[1726138809757,11.43,134.38,134.33,14.95836133]
[1726138810062,3.62967199,134.4,134.33,11.60866133]
[1726138810063,11.43,134.35,134.33,11.60866133]
[1726138810269,3.3495,134.34,134.33,11.60866133]
[1726138810564,11.43,134.37,134.33,11.60866133]
[1726138810749,2.8008,134.39,134.33,11.60866133]
[1726138810949,11.43,134.38,134.33,11.60866133]
[1726138811154,3.3492,134.36,134.33,14.95836133]
[1726138811349,11.43,134.38,134.33,14.95836133]
[1726138812660,3.3492,134.36,134.33,14.95836133]
[1726138814759,3.3493,134.35,134.33,11.60866133]
[1726138815266,11.43,134.37,134.33,11.60866133]
[1726138816266,3.3494,134.35,134.33,11.60866133]
[1726138816452,11.43,134.37,134.33,11.60866133]
[1726138816859,3.3495,134.34,134.33,11.60866133]
[1726138818356,3.3493,134.35,134.33,11.60866133]
[1726138820579,3.3495,134.34,134.33,11.60866133]
[1726138826572,3.3494,134.35,134.33,11.60866133]
[1726138828668,3.3494,134.35,134.33,14.95836133]
[1726138830475,3.3494,134.35,134.33,11.60866133]
[1726138830672,3.3495,134.34,134.33,11.60866133]
[1726138832464,14.7795,134.34,134.33,11.60866133]
[1726138837168,3.3495,134.34,134.33,11.60866133]
[1726138846085,14.7795,134.34,134.33,11.60866133]
[1726138847673,3.3497,134.33,134.32,21.86513565]
[1726138849590,14.7797,134.33,134.32,21.86513565]
[1726138850578,3.3497,134.33,134.32,21.86513565]
[1726138856891,3.3496,134.34,134.32,21.86513565]
[1726138857196,6.6954,134.42,134.32,33.29513565]
[1726138857197,11.43,134.38,134.32,33.29513565]
[1726138857385,11.43,134.38,134.33,1.3583]
[1726138858088,103.66118754,134.41,134.33,12.7883]
[1726138858295,11.43,134.4,134.34,1.4062]
[1726138858483,3.3484,134.39,134.36,3.3489]
[1726138859297,3.3485,134.38,134.36,3.3489]
[1726138860481,3.3489,134.37,134.34,1.4062]
[1726138860889,11.43,134.37,134.34,1.4062]
[1726138861184,3.3492,134.36,134.34,1.4062]
[1726138862086,3.3488,134.37,134.34,4.7555]
[1726138862292,3.3488,134.37,134.34,1.4062]
[1726138862491,3.3486,134.38,134.34,12.8362]
[1726138862691,115.09118754,134.41,134.35,1.3216]
[1726138862997,115.09118754,134.41,134.36,11.43]
[1726138863181,3.3481,134.4,134.37,3.3487]
[1726138863381,115.09118754,134.41,134.37,3.3487]
[1726138863585,115.09118754,134.41,134.36,11.43]
[1726138863779,3.3484,134.39,134.36,3.3489]
[1726138864979,11.43,134.4,134.36,3.3489]
[1726138865188,11.43,134.4,134.35,4.6707]
[1726138865491,3.3486,134.38,134.35,4.6707]
[1726138867986,3.3486,134.38,134.36,3.349]
[1726138875398,3.3484,134.39,134.36,3.349]
[1726138878194,3.3486,134.38,134.36,3.349]
[1726138880100,3.3484,134.39,134.36,3.349]
[1726138880899,3.3485,134.38,134.36,3.349]
[1726138881096,3.3485,134.38,134.35,4.6707]
[1726138881696,3.3489,134.37,134.34,4.7555]
[1726138882299,3.349,134.36,134.34,4.7555]
[1726138882504,3.349,134.36,134.34,1.4062]
[1726138883208,3.3492,134.35,134.34,1.4062]
[1726138883408,3.3492,134.35,134.33,4.7079]
[1726138883598,11.43,134.38,134.33,1.3583]
[1726138884105,11.43,134.38,134.33,4.7079]
[1726138884299,3.3491,134.36,134.33,4.7079]
[1726138884502,11.43,134.38,134.33,4.7079]
[1726138884702,11.43,134.38,134.33,1.3583]
[1726138885811,3.3494,134.35,134.33,1.3583]
[1726138886408,3.3494,134.35,134.33,4.708]
[1726138886707,3.349,134.36,134.33,1.3583]
[1726138887108,3.3489,134.37,134.33,1.3583]
[1726138887306,103.66118754,134.41,134.33,12.7883]
[1726138887607,11.43,134.4,134.33,12.7883]
[1726138887807,3.3486,134.38,134.35,3.3491]
[1726138890604,3.3486,134.38,134.36,3.3489]
[1726138892607,3.3484,134.39,134.36,3.3489]
[1726138892998,103.66118754,134.41,134.36,11.43]
[1726138893499,103.66118754,134.41,134.38,3.3484]
[1726138894499,107.00908754,134.41,134.38,3.3484]
[1726138895303,3.3479,134.41,134.38,3.3484]
[1726138896306,3.3476,134.42,134.39,3.3482]
[1726138896612,3.3476,134.42,134.39,11.43]
[1726138896916,11.43,134.44,134.39,11.43]
[1726138897101,3.3475,134.42,134.4,3.348]
[1726138898011,3.3474,134.43,134.4,3.348]
[1726138898210,103.6238099,134.46,134.41,11.43]
[1726138898509,228.0,134.55,134.44,11.43]
[1726138898510,3.3459,134.49,134.44,11.43]
[1726138898718,11.43,134.5,134.45,3.3467]
[1726138899108,3.346,134.49,134.45,3.3467]
[1726138899412,11.43,134.5,134.45,3.3467]
[1726138900511,11.43,134.49,134.43,11.43]
[1726138900918,3.3465,134.46,134.43,14.7771]
[1726138901913,3.3463,134.47,134.43,14.7771]
[1726138902802,3.3463,134.47,134.44,3.347]
[1726138906316,3.3461,134.48,134.45,3.3467]
[1726138908627,3.3459,134.49,134.46,3.3465]
[1726138910135,3.3455,134.5,134.46,11.43]
[1726138911740,3.3455,134.5,134.48,3.346]
[1726138912030,14.1498,134.53,134.48,3.346]
[1726138912031,3.3454,134.51,134.48,3.346]
[1726138912926,3.3451,134.52,134.49,3.3457]
[1726138913233,11.43,134.53,134.47,11.43]
[1726138913826,1.15452076,134.52,134.47,11.43]
[1726138914031,1.15452076,134.52,134.46,11.43]
[1726138915137,11.43,134.53,134.46,11.43]
[1726138915445,3.3453,134.51,134.46,11.43]
[1726138916038,3.3453,134.51,134.48,3.346]
[1726138916442,3.3455,134.5,134.46,11.43]
[1726138917840,3.3455,134.5,134.47,3.3461]
[1726138920448,3.3458,134.49,134.47,3.3461]
[1726138920750,3.3458,134.49,134.46,14.7765]
[1726138920955,11.43,134.51,134.45,11.43]
[1726138921344,11.43,134.51,134.46,3.3464]
[1726138921552,3.346,134.48,134.46,3.3464]
[1726138921749,6.6886,134.55,134.42,3.9683]
[1726138921945,11.43,134.49,134.43,14.7771]
[1726138922145,3.3464,134.47,134.43,11.43]
[1726138922844,3.3461,134.48,134.44,11.43]
[1726138923554,3.3463,134.47,134.45,3.3467]
[1726138923847,11.43,134.5,134.45,3.3467]
[1726138924049,3.74051268,134.53,134.46,3.3465]
[1726138924358,11.43,134.51,134.46,3.3465]
[1726138924562,3.3457,134.5,134.47,3.3462]
[1726138924744,3.3457,134.5,134.47,14.7762]
[1726138925050,11.43,134.53,134.47,11.43]
[1726138925243,3.3459,134.49,134.46,14.7764]
[1726138925646,3.3462,134.48,134.45,3.3466]
[1726138925846,11.43,134.51,134.45,3.3466]
[1726138926342,3.3461,134.48,134.45,3.3466]
[1726138927955,3.3459,134.49,134.46,3.3465]
[1726138928758,3.3459,134.49,134.46,14.7765]
[1726138929253,3.3459,134.49,134.47,3.3463]
[1726138930247,3.3459,134.49,134.46,3.3464]
[1726138930448,3.3459,134.49,134.46,14.7764]
[1726138931145,3.346,134.48,134.46,11.43]
[1726138932046,3.346,134.48,134.46,14.7765]
[1726138932454,6.5096198,134.58,134.46,11.43]
[1726138932455,3.3458,134.49,134.46,11.43]
[1726138933254,3.3458,134.49,134.46,14.7764]
[1726138936865,3.3458,134.49,134.47,11.43]
[1726138940256,3.3458,134.49,134.47,14.7762]
[1726138941364,3.3458,134.49,134.47,11.43]
[1726138941761,3.3458,134.49,134.47,14.7762]
[1726138942467,3.3456,134.5,134.47,14.7762]
[1726138943254,3.3458,134.49,134.47,14.7762]
[1726138943452,3.3458,134.49,134.47,11.43]
[1726138955763,3.3458,134.49,134.47,14.7762]
[1726138956168,3.3457,134.5,134.47,14.7762]
[1726138956779,11.43,134.54,134.48,3.3458]
[1726138956974,3.3455,134.51,134.48,14.7758]
[1726138957476,3.3456,134.5,134.48,14.7758]
[1726138959475,3.3456,134.5,134.48,3.3458]
[1726138959678,3.3456,134.5,134.47,14.7761]
[1726138960380,11.43,134.54,134.47,14.7761]
[1726138961482,3.3457,134.5,134.47,14.7761]
[1726138964677,3.3454,134.51,134.48,14.776]
[1726138965687,3.3455,134.5,134.48,14.776]
[1726138967283,3.3455,134.5,134.47,3.3461]
[1726138967482,3.3455,134.5,134.47,14.7761]
[1726138969588,11.43,134.49,134.42,12.7634]
[1726138969987,3.347,134.45,134.42,12.7634]
[1726138970295,11.43,134.49,134.42,12.7634]
[1726138970591,11.43,134.47,134.42,1.3334]
[1726138971478,3.3472,134.44,134.42,1.3334]
[1726138974576,3.3472,134.43,134.42,1.3334]
[1726138979387,3.3471,134.44,134.42,1.3334]
[1726138980487,3.3472,134.43,134.42,1.3334]
[1726138980685,6.692,134.49,134.37,1.3629]
[1726138980894,3.3484,134.39,134.37,1.3629]
[1726138981392,3.3481,134.4,134.37,4.7115]
[1726138981697,3.3481,134.4,134.38,11.43]
[1726138989296,3.3481,134.4,134.37,4.7115]
[1726138989497,1.3121,134.47,134.38,14.7785]
[1726138989684,11.43,134.44,134.38,12.818]
[1726138990208,3.3481,134.4,134.38,12.818]
[1726138990499,11.43,134.44,134.38,12.818]
[1726138991295,3.3481,134.4,134.38,12.818]
[1726138991895,3.3481,134.4,134.38,16.1664]
[1726138992091,1.3121,134.47,134.38,16.1664]
[1726138992295,11.43,134.44,134.38,16.1664]
[1726138992504,3.3479,134.41,134.38,16.1664]
[1726138993105,3.3479,134.41,134.39,3.3482]
[1726138993397,1.3121,134.47,134.39,3.3482]
[1726138993398,3.3476,134.42,134.39,14.7782]
[1726138995106,11.43,134.45,134.39,14.7782]
[1726138995107,3.3478,134.41,134.39,14.7782]
[1726138996106,11.43,134.46,134.4,3.3479]
[1726138996306,11.43,134.46,134.39,11.43]
[1726138996602,11.43,134.46,134.39,14.778]
[1726138996999,3.3476,134.42,134.39,14.778]
[1726139000611,3.3475,134.43,134.4,3.348]
[1726139002109,3.3471,134.44,134.41,14.7777]
[1726139002297,107.30105599,134.5,134.42,11.43]
[1726139002298,103.59792932,134.5,134.42,11.43]
[1726139002501,11.43,134.49,134.42,11.43]
[1726139002707,11.43,134.49,134.43,1.4333]
[1726139002904,3.3464,134.47,134.43,1.4333]
[1726139003621,3.3466,134.46,134.43,4.7804]
[1726139006005,11.43,134.49,134.43,1.4333]
[1726139006713,11.43,134.48,134.43,4.7805]
[1726139007511,3.3468,134.45,134.43,4.7805]
[1726139008909,3.347,134.44,134.43,1.4333]
[1726139009411,3.347,134.44,134.4,11.43]
[1726139009803,3.347,134.44,134.41,3.3476]
[1726139010216,11.43,134.46,134.41,3.3476]
[1726139010716,11.43,134.45,134.4,3.348]
[1726139011522,3.3474,134.43,134.4,3.348]
[1726139012121,3.3475,134.42,134.39,4.6517]
[1726139012416,11.43,134.44,134.39,1.3035]
[1726139013213,3.3477,134.42,134.39,1.3035]
[1726139015713,11.43,134.44,134.39,1.3035]
[1726139016015,11.43,134.43,134.38,1.3691]
[1726139016318,125.94792932,134.5,134.35,11.43]
[1726139016319,11.43,134.41,134.35,11.43]
[1726139016708,11.43,134.41,134.35,14.779]
[1726139016903,11.43,134.41,134.35,11.43]
[1726139017513,3.3484,134.39,134.36,3.3489]
[1726139018115,3.3486,134.38,134.35,3.3491]
[1726139029131,3.3484,134.39,134.36,3.349]
[1726139034938,11.43,134.41,134.36,3.349]
[1726139035134,3.3485,134.38,134.36,3.349]
[1726139039749,3.3483,134.39,134.36,3.349]
[1726139040347,3.3483,134.39,134.37,3.3487]
[1726139040755,3.3481,134.4,134.37,3.3487]
[1726139040941,17.28531472,134.48,134.39,3.3482]
[1726139041252,3.3477,134.42,134.39,3.3482]
[1726139042040,3.348,134.4,134.37,11.43]
[1726139042234,3.348,134.4,134.35,11.43]
[1726139042752,3.348,134.4,134.37,3.3486]
[1726139043049,3.3483,134.39,134.35,11.43]
[1726139043247,11.43,134.42,134.36,3.3488]
[1726139043439,3.3485,134.38,134.34,12.7324]
[1726139043643,11.43,134.4,134.34,12.7324]
[1726139044046,3.3484,134.39,134.36,3.3489]
[1726139044854,3.3485,134.38,134.35,3.3491]
[1726139045756,11.43,134.39,134.34,1.3024]
[1726139046741,3.3489,134.37,134.34,4.6518]
[1726139047449,106.29136503,134.42,134.32,21.86513565]
[1726139047647,11.43,134.35,134.32,21.86513565]
[1726139047847,3.3491,134.36,134.32,25.21513565]
[1726139048745,3.3491,134.36,134.33,3.3497]
[1726139049048,11.43,134.37,134.32,25.60228981]
[1726139049349,11.43,134.37,134.33,3.3496]
[1726139050344,2.6388,134.42,134.34,3.3494]
[1726139050545,11.43,134.39,134.34,3.3494]
[1726139050948,3.3486,134.38,134.34,3.3494]
[1726139051850,3.3483,134.39,134.33,11.43]
[1726139052051,3.3483,134.39,134.35,11.43]
[1726139052257,11.43,134.4,134.35,11.43]
[1726139052458,11.43,134.42,134.35,12.8238]
[1726139053543,11.43,134.42,134.35,14.1904]
[1726139053743,3.3481,134.4,134.37,3.3487]
[1726139055873,3.3483,134.39,134.36,3.3489]
[1726139057747,3.3483,134.39,134.35,1.3938]
[1726139057748,11.43,134.39,134.35,1.3938]
[1726139058057,3.72366541,134.44,134.35,1.3938]
[1726139058261,11.43,134.4,134.35,1.3938]
[1726139058565,11.43,134.38,134.35,1.3938]
[1726139058763,3.349,134.36,134.35,1.3938]
[1726139059263,11.43,134.38,134.35,1.3938]
[1726139059657,3.3489,134.37,134.35,1.3938]
[1726139060156,3.3486,134.38,134.35,4.743]
[1726139060559,3.3486,134.38,134.35,1.3938]
[1726139061861,3.3486,134.38,134.36,3.349]
[1726139062372,3.3486,134.38,134.35,4.7429]
[1726139068868,3.3489,134.37,134.35,1.3938]
[1726139069967,3.3489,134.37,134.35,4.743]
[1726139071359,3.3486,134.38,134.35,4.743]
[1726139073275,11.43,134.41,134.35,1.3938]
[1726139073659,3.3486,134.38,134.35,4.7429]
[1726139075874,10.33559518,134.51,134.37,11.43]
[1726139076075,2.6785,134.5,134.4,11.43]
[1726139076271,11.43,134.48,134.42,11.43]
[1726139076674,11.43,134.47,134.4,11.43]
[1726139076873,3.3467,134.46,134.41,3.3476]
[1726139077172,3.3467,134.46,134.4,16.56268184]
[1726139077576,3.3467,134.46,134.42,3.3473]
[1726139078079,3.3464,134.47,134.42,14.7773]
[1726139079182,3.3464,134.47,134.43,3.3472]
[1726139080479,3.3465,134.46,134.42,14.7774]
[1726139082581,3.3463,134.47,134.43,3.3471]
[1726139082783,11.43,134.48,134.42,11.43]
[1726139083179,11.43,134.49,134.43,11.43]
[1726139083779,3.3462,134.48,134.44,3.3468]
[1726139084485,103.5724168,134.53,134.43,11.43]
[1726139084782,11.43,134.51,134.45,11.43]
[1726139085082,103.5724168,134.53,134.45,11.43]
[1726139085280,3.3456,134.5,134.46,3.3464]
[1726139086285,3.3458,134.49,134.46,3.3464]
[1726139086507,11.43,134.51,134.46,3.3464]
[1726139086979,3.3457,134.5,134.46,3.3464]
[1726139087177,11.43,134.51,134.46,3.3464]
[1726139087584,3.3457,134.5,134.46,3.3464]
[1726139088691,3.3457,134.5,134.47,3.3462]
[1726139093885,3.3458,134.49,134.46,3.3463]
[1726139094284,11.43,134.51,134.45,11.43]
[1726139094491,3.3457,134.5,134.47,3.3462]
[1726139106595,3.3452,134.52,134.49,3.3458]
[1726139107800,3.3453,134.51,134.49,3.3458]
[1726139108701,3.3451,134.52,134.49,3.3458]
[1726139110805,3.3453,134.51,134.49,3.3458]
[1726139111395,3.3453,134.51,134.48,3.3459]
[1726139114105,3.3455,134.5,134.48,3.3459]
[1726139114909,3.3454,134.51,134.48,11.43]
[1726139115300,3.3454,134.51,134.48,14.7758]
[1726139115502,3.3454,134.51,134.48,11.43]
[1726139116305,103.5724168,134.53,134.49,3.3456]
[1726139116306,3.3451,134.52,134.49,3.3456]
[1726139117605,3.3454,134.51,134.48,14.7759]
[1726139122411,3.3457,134.5,134.48,11.43]
[1726139122599,103.5724168,134.53,134.48,11.43]
[1726139122798,3.3454,134.51,134.48,14.7758]
[1726139125213,3.3458,134.49,134.46,11.43]
[1726139125903,3.346,134.48,134.45,11.43]
[1726139126218,11.43,134.51,134.45,3.3466]
[1726139126715,3.3461,134.48,134.45,3.3466]
[1726139127105,3.3461,134.48,134.46,3.3464]
[1726139127310,3.3459,134.49,134.46,11.43]
[1726139127513,11.43,134.52,134.47,3.3461]
[1726139127908,3.3454,134.51,134.47,3.3461]
[1726139128114,11.43,134.52,134.47,3.3461]
[1726139128614,3.3457,134.5,134.47,3.3461]
[1726139129318,3.3458,134.49,134.47,3.3461]
[1726139131417,3.3458,134.49,134.46,14.7764]
[1726139131614,3.346,134.48,134.46,3.3464]
[1726139132102,3.346,134.48,134.45,14.7766]
[1726139132705,3.346,134.48,134.46,3.3464]
[1726139133002,3.3459,134.49,134.46,3.3464]
[1726139133218,3.3459,134.49,134.4,5.13268184]
[1726139133413,3.3459,134.49,134.46,11.43]
[1726139134919,3.3459,134.49,134.47,3.3462]
[1726139138906,3.3456,134.5,134.47,3.3462]
[1726139140221,3.3456,134.5,134.48,3.346]
[1726139140414,3.3456,134.5,134.46,11.43]
[1726139140810,3.3454,134.51,134.46,11.43]
[1726139141016,1.3766,134.57,134.49,11.43]
[1726139141219,11.43,134.55,134.49,11.43]
[1726139141523,11.43,134.55,134.49,14.7756]
[1726139141524,3.3451,134.52,134.49,14.7756]
[1726139145926,3.3453,134.51,134.49,14.7756]
[1726139146125,3.3453,134.51,134.48,14.7759]
[1726139146527,3.3453,134.51,134.48,3.3459]
[1726139146725,3.3455,134.5,134.48,3.3459]
[1726139146924,11.43,134.52,134.47,1.3823]
[1726139147321,11.43,134.52,134.47,12.8123]
[1726139147526,11.43,134.52,134.47,16.1584]
[1726139148035,3.3456,134.5,134.47,16.1584]
[1726139151427,3.3456,134.5,134.48,3.346]
[1726139151628,3.3454,134.51,134.48,3.346]
[1726139151824,1.338,134.55,134.49,3.3457]
[1726139151825,11.43,134.54,134.49,3.3457]
[1726139152335,3.3452,134.52,134.49,3.3457]
[1726139154735,12.768,134.55,134.48,11.43]
[1726139155634,3.345,134.52,134.49,3.3456]
[1726139161337,3.3449,134.53,134.5,14.7755]
[1726139163242,3.3451,134.52,134.5,11.43]
[1726139163436,11.43,134.54,134.48,2.7699]
[1726139163827,11.43,134.54,134.48,6.1158]
[1726139163828,3.3455,134.51,134.48,6.1158]
[1726139164439,11.43,134.54,134.48,4.7735]
[1726139165932,3.3454,134.51,134.48,4.7735]
[1726139168549,3.3456,134.5,134.47,4.7284]
[1726139168848,103.54492609,134.56,134.45,11.43]
[1726139168849,11.43,134.52,134.45,11.43]
[1726139169255,3.3458,134.49,134.46,3.3463]
[1726139171957,3.3458,134.49,134.47,14.7762]
[1726139173154,3.3456,134.5,134.47,14.7762]
[1726139175055,3.3456,134.5,134.47,3.3462]
[1726139178648,3.3454,134.51,134.48,3.3459]
[1726139179053,11.43,134.53,134.47,11.43]
[1726139179356,3.3457,134.5,134.47,14.7761]
[1726139188956,3.3457,134.5,134.48,3.346]
[1726139189663,3.3454,134.51,134.48,3.346]
[1726139190456,3.3451,134.52,134.49,3.3456]
[1726139190659,9.0,134.5,134.49,3.3456]
[1726139192458,9.0,134.5,134.49,14.7756]
[1726139193764,6.8472,134.5,134.49,14.7756]
[1726139196263,3.3444,134.55,134.52,3.3449]
[1726139196468,103.54492609,134.56,134.53,11.43]
[1726139196767,103.54492609,134.56,134.54,3.3444]
[1726139197266,3.3437,134.58,134.54,14.7744]
[1726139198153,3.3438,134.57,134.54,14.7744]
[1726139198353,11.43,134.61,134.55,3.3442]
[1726139198968,3.3435,134.59,134.55,3.3442]
[1726139199365,3.3435,134.59,134.56,3.3439]
[1726139199774,3.3435,134.59,134.56,14.7739]
[1726139199964,3.3431,134.6,134.57,3.3437]
[1726139202661,3.3431,134.6,134.57,14.7737]
[1726139202962,3.78502248,134.66,134.59,3.3432]
[1726139203162,12.58649733,134.65,134.59,3.3432]
[1726139203372,11.43,134.65,134.59,3.3432]
[1726139203577,3.3425,134.63,134.59,3.3432]
[1726139203774,3.3425,134.63,134.59,11.43]
[1726139203974,3.3422,134.64,134.61,11.43]
[1726139204372,11.43,134.67,134.6,14.7728]
[1726139204673,11.43,134.65,134.6,14.7728]
[1726139204870,3.3423,134.63,134.6,14.7728]
[1726139206992,3.3423,134.63,134.61,3.3428]
[1726139207195,3.3421,134.64,134.61,3.3428]
[1726139207398,3.3421,134.64,134.61,14.7728]
[1726139208984,3.3419,134.65,134.62,3.3425]
[1726139209490,11.43,134.67,134.62,3.3425]
[1726139210189,11.43,134.67,134.61,3.3427]
[1726139210591,11.43,134.67,134.6,11.43]
[1726139210787,11.43,134.67,134.62,3.3425]
[1726139211496,3.3419,134.65,134.62,3.3425]
[1726139214094,3.3419,134.65,134.63,3.3422]
[1726139214304,3.3419,134.65,134.63,14.7722]
[1726139215897,3.3414,134.67,134.63,11.43]
[1726139216293,3.3414,134.67,134.64,11.43]
[1726139216495,3.3414,134.67,134.64,14.7718]
[1726139216691,3.3412,134.68,134.64,11.43]
[1726139217205,1.3641,134.69,134.56,1.3848]
[1726139217206,106.88552609,134.7,134.66,11.43]
[1726139217802,106.88552609,134.7,134.67,3.3411]
[1726139219205,3.3408,134.69,134.67,3.3411]
[1726139219405,103.54492609,134.7,134.67,3.3411]
[1726139219611,106.88562609,134.7,134.67,3.3411]
[1726139220198,3.3407,134.7,134.67,14.7711]
[1726139220804,2.7464,134.74,134.68,3.3409]
[1726139220805,3.3404,134.71,134.68,3.3409]
[1726139221007,3.3404,134.71,134.68,11.43]
[1726139221302,14.1764,134.74,134.68,11.43]
[1726139221303,3.3406,134.7,134.68,11.43]
[1726139221507,14.1764,134.74,134.67,11.43]
[1726139221703,1.15636535,134.73,134.67,11.43]
[1726139221902,3.3404,134.71,134.67,11.43]
[1726139222317,14.1764,134.74,134.67,11.43]
[1726139222509,1.15631807,134.73,134.67,11.43]
[1726139222815,1.15631807,134.73,134.69,11.43]
[1726139223614,14.1764,134.74,134.69,11.43]
[1726139223812,3.3405,134.7,134.69,11.43]
[1726139227215,11.43,134.7,134.54,10.48620742]
[1726139227411,11.43,134.7,134.64,11.43]
[1726139227716,3.3418,134.65,134.64,11.43]
[1726139228310,3.3416,134.66,134.64,14.772]
[1726139228724,3.3416,134.66,134.64,11.43]
[1726139228919,3.3417,134.66,134.64,11.43]
[1726139229218,11.43,134.71,134.64,11.43]
[1726139229413,11.43,134.7,134.64,11.43]
[1726139229613,12.7817,134.7,134.64,11.43]
[1726139229816,3.3418,134.65,134.64,11.43]
[1726139231112,1.3517,134.7,134.64,11.43]
[1726139231317,1.3517,134.7,134.66,11.43]
[1726139231513,3.341,134.68,134.6,2.7003]
[1726139231818,1.3517,134.7,134.6,2.7003]
[1726139232015,1.3517,134.7,134.66,11.43]
[1726139233805,3.3412,134.68,134.66,11.43]
[1726139234520,3.3413,134.67,134.66,11.43]
[1726139235920,3.3411,134.68,134.66,11.43]
[1726139236114,3.3411,134.68,134.65,3.3418]
[1726139236115,1.3517,134.7,134.65,11.43]
[1726139236822,3.3414,134.67,134.65,11.43]
[1726139237015,1.3517,134.7,134.65,11.43]
[1726139237222,3.3415,134.67,134.65,11.43]
[1726139237421,1.3517,134.7,134.65,11.43]
[1726139237728,1.3517,134.7,134.63,6.97789872]
[1726139237729,11.43,134.69,134.62,3.3424]
[1726139237912,12.8033,134.69,134.62,14.7724]
[1726139238221,3.3421,134.64,134.61,3.3426]
[1726139238417,3.3421,134.64,134.62,11.43]
[1726139239818,11.43,134.67,134.6,2.7003]
[1726139240018,11.43,134.65,134.59,11.43]
[1726139240322,11.43,134.65,134.55,4.0904]
[1726139240520,1.3546,134.64,134.58,11.43]
[1726139240718,2.7524,134.64,134.58,11.43]
[1726139240919,11.43,134.63,134.58,11.43]
[1726139241221,11.43,134.6,134.55,1.4321]
[1726139241422,11.43,134.6,134.54,11.43]
[1726139242324,3.3439,134.57,134.54,11.43]
[1726139243129,3.3439,134.57,134.54,14.7745]
[1726139245116,3.3439,134.57,134.54,3.3445]
[1726139245425,3.3439,134.57,134.54,14.7745]
[1726139248128,11.43,134.59,134.5,2.6744]
[1726139248317,11.43,134.59,134.52,11.43]